bitfinex-derivatives/quotes_SOLF0:USTF0_20250309
["timestamp","ask_amount","ask_price","bid_price","bid_amount"]
[1741554508830,7.84304661,128.38,128.36,0.05277472]
[1741554509220,0.05274661,128.38,128.36,0.05277472]
[1741554509631,7.7906,128.37,128.36,0.05277472]
[1741554511936,0.05274661,128.38,128.36,0.05277472]
[1741554512432,7.7906,128.37,128.36,0.05277472]
[1741554516341,7.7906,128.37,128.36,7.472e-05]
[1741554517537,7.7948,128.3,128.26,8.3402]
[1741554517839,19.69544035,128.33,128.26,42.7491]
[1741554518540,0.05175572,128.31,128.28,0.05200036]
[1741554518738,19.74719607,128.31,128.28,0.05200036]
[1741554519040,7.7955,128.29,128.28,0.05200036]
[1741554519432,0.05175572,128.31,128.28,0.05200036]
[1741554519642,7.84615572,128.31,128.28,0.05200036]
[1741554520536,0.05175572,128.31,128.28,0.05200036]
[1741554520738,0.05175572,128.31,128.29,7.7953]
[1741554521237,0.05175572,128.31,128.28,30.33200036]
[1741554521733,7.84615572,128.31,128.28,30.33200036]
[1741554523640,0.05175572,128.31,128.28,30.33200036]
[1741554524335,7.84605572,128.31,128.28,30.33200036]
[1741554524840,0.05175572,128.31,128.28,30.33200036]
[1741554525044,0.05175572,128.31,128.29,7.7952]
[1741554525745,0.05175572,128.31,128.3,7.7948]
[1741554526039,0.05175572,128.31,128.28,30.33200036]
[1741554526938,0.05175572,128.31,128.29,7.7954]
[1741554528044,0.05175572,128.31,128.28,30.33200036]
[1741554528443,0.05175572,128.31,128.28,0.05200036]
[1741554528643,7.7954,128.3,128.28,0.05200036]
[1741554529043,19.74719607,128.31,128.28,0.05200036]
[1741554529241,27.49084035,128.29,128.28,0.05200036]
[1741554529543,19.69544035,128.29,128.22,38.0793]
[1741554530043,19.69544035,128.29,128.2,19.69544035]
[1741554530346,19.69544035,128.27,128.19,42.634]
[1741554530543,0.05427857,128.26,128.23,0.05180178]
[1741554530745,7.7978,128.25,128.23,0.05180178]
[1741554530946,0.05427857,128.26,128.23,0.05180178]
[1741554531146,7.7985,128.24,128.23,0.05180178]
[1741554531841,7.7979,128.25,128.23,0.05180178]
[1741554532547,7.85157857,128.26,128.23,0.05180178]
[1741554533247,0.05427857,128.26,128.23,0.05180178]
[1741554533448,7.85177857,128.26,128.23,0.05180178]
[1741554534045,0.05427857,128.26,128.23,0.05180178]
[1741554534250,0.05427857,128.26,128.24,7.7981]
[1741554534746,0.05427857,128.26,128.23,0.05180178]
[1741554535051,0.05427857,128.26,128.23,7.85070178]
[1741554535351,0.05427857,128.26,128.25,7.7978]
[1741554536053,0.05427857,128.26,128.24,4.2665]
[1741554536551,0.05427857,128.26,128.24,12.0646]
[1741554537649,0.05427857,128.26,128.24,4.2665]
[1741554538241,0.05427857,128.26,128.24,12.0649]
[1741554538646,0.05427857,128.26,128.24,4.2665]
[1741554540444,0.05427857,128.26,128.24,12.0649]
[1741554542157,0.05427857,128.26,128.25,7.7978]
[1741554545854,0.05427857,128.26,128.24,8.1406]
[1741554546052,7.7985,128.24,128.23,0.05180178]
[1741554546353,12.61589941,128.24,128.23,0.05180178]
[1741554546557,20.46777798,128.26,128.23,0.05180178]
[1741554547054,12.61589941,128.24,128.23,0.00980178]
[1741554547256,20.41439941,128.24,128.23,0.00980178]
[1741554547454,42.89589941,128.24,128.17,12.61589941]
[1741554547645,12.61589941,128.21,128.17,12.61589941]
[1741554548349,19.71746308,128.23,128.16,8.461]
[1741554548658,7.85408579,128.2,128.18,0.05954914]
[1741554548951,0.05278579,128.2,128.18,0.05954914]
[1741554549151,0.05278579,128.2,128.19,7.8015]
[1741554549454,0.05278579,128.2,128.18,19.77701222]
[1741554550356,30.28,128.24,128.18,19.77701222]
[1741554550557,19.71746308,128.29,128.2,19.71746308]
[1741554550746,49.99746308,128.29,128.2,19.71746308]
[1741554551359,7.7971,128.27,128.2,19.71746308]
[1741554551545,0.05304352,128.26,128.23,0.05892498]
[1741554552456,7.85034352,128.26,128.23,0.05892498]
[1741554552648,0.05304352,128.26,128.23,0.05892498]
[1741554553448,7.7985,128.24,128.23,0.05892498]
[1741554553653,0.05304352,128.26,128.23,0.05892498]
[1741554553950,0.05304352,128.26,128.23,7.85762498]
[1741554554151,0.05304352,128.26,128.23,0.05892498]
[1741554554753,0.05304352,128.26,128.24,7.7984]
[1741554555061,0.05304352,128.26,128.23,0.05892498]
[1741554555254,7.85054352,128.26,128.23,0.05892498]
[1741554555455,0.05304352,128.26,128.23,0.05892498]
[1741554555657,7.7982,128.25,128.23,0.05892498]
[1741554556650,0.05304352,128.26,128.23,0.05892498]
[1741554557953,7.798,128.25,128.23,0.05892498]
[1741554559657,7.7985,128.24,128.23,0.05892498]
[1741554560062,0.05304352,128.26,128.23,0.05892498]
[1741554560259,7.7985,128.24,128.23,0.05892498]
[1741554561961,7.7979,128.25,128.23,0.05892498]
[1741554563061,7.7985,128.24,128.23,0.05892498]
[1741554567070,19.71746308,128.24,128.17,4.101]
[1741554567465,7.801,128.2,128.17,4.101]
[1741554567664,7.801,128.2,128.14,49.99746308]
[1741554567873,7.801,128.2,128.15,4.0208]
[1741554568167,0.05765548,128.19,128.16,7.85866184]
[1741554568372,0.05765548,128.19,128.16,0.05586184]
[1741554568978,0.05765548,128.19,128.16,19.77332492]
[1741554569473,7.7982,128.25,128.18,19.71746308]
[1741554569671,7.7982,128.25,128.18,49.99746308]
[1741554570266,7.7986,128.24,128.2,7.8005]
[1741554570472,54.17716308,128.26,128.18,49.99746308]
[1741554570771,0.05640862,128.23,128.22,7.7997]
[1741554571074,285.13055873,128.3,128.21,0.05818159]
[1741554571375,19.71746308,128.28,128.21,4.1719]
[1741554572274,0.05784632,128.26,128.23,0.0588663]
[1741554572474,7.7989,128.24,128.23,0.0588663]
[1741554575173,19.71746308,128.24,128.16,49.99746308]
[1741554575374,19.71746308,128.24,128.16,30.28]
[1741554575576,19.71746308,128.24,128.17,7.8024]
[1741554575971,7.8012,128.2,128.17,7.8024]
[1741554576366,0.05997287,128.2,128.18,7.8019]
[1741554576572,0.05997287,128.2,128.17,0.05687514]
[1741554577275,0.05997287,128.2,128.18,7.8018]
[1741554577474,0.05997287,128.2,128.17,0.05687514]
[1741554577871,0.05997287,128.2,128.19,7.8015]
[1741554578179,49.99746308,128.26,128.18,23.65246308]
[1741554578575,49.99746308,128.26,128.2,7.8008]
[1741554578576,7.7989,128.24,128.2,7.8008]
[1741554578968,7.7977,128.26,128.2,49.99746308]
[1741554579179,0.05710527,128.23,128.21,0.05257584]
[1741554579372,7.7977,128.26,128.21,0.05257584]
[1741554579679,7.7977,128.26,128.22,7.7992]
[1741554579867,43.13309565,128.29,128.21,0.05257584]
[1741554580071,7.7979,128.25,128.21,7.8]
[1741554580573,0.05933175,128.24,128.22,0.05879059]
[1741554580773,0.05933175,128.24,128.22,7.85829059]
[1741554582875,0.05933175,128.24,128.22,0.05879059]
[1741554583579,7.85793175,128.24,128.22,0.05879059]
[1741554583771,0.05933175,128.24,128.22,0.05879059]
[1741554585381,0.05933175,128.24,128.23,7.7991]
[1741554586078,0.05933175,128.24,128.22,7.85819059]
[1741554587877,0.05933175,128.24,128.22,0.05879059]
[1741554588784,7.7991,128.23,128.22,0.05879059]
[1741554596883,0.05933175,128.24,128.22,0.05879059]
[1741554598282,0.05933175,128.24,128.23,7.7991]
[1741554598688,0.05933175,128.24,128.22,7.85799059]
[1741554600781,0.05933175,128.24,128.22,0.05879059]
[1741554600985,0.05933175,128.24,128.23,7.7991]
[1741554601189,0.05933175,128.24,128.22,0.05879059]
[1741554602786,7.85783175,128.24,128.22,0.05879059]
[1741554603793,0.05933175,128.24,128.22,0.05879059]
[1741554604587,7.85823175,128.24,128.22,0.05879059]
[1741554604784,0.05933175,128.24,128.22,0.05879059]
[1741554605596,7.7991,128.23,128.22,0.05879059]
[1741554607900,0.05933175,128.24,128.22,0.05879059]
[1741554608102,7.7991,128.23,128.22,0.05879059]
[1741554611509,7.8014,128.2,128.12,17.74079974]
[1741554611711,7.8014,128.2,128.14,30.28]
[1741554611905,7.8014,128.2,128.16,7.8033]
[1741554612105,7.8016,128.19,128.14,30.28]
[1741554612607,0.05191263,128.18,128.16,0.05376183]
[1741554614509,0.05191263,128.18,128.16,7.85706183]
[1741554616004,0.05191263,128.18,128.17,7.8027]
[1741554617115,30.28,128.25,128.2,7.8008]
[1741554617313,30.28,128.25,128.17,19.71746308]
[1741554617613,7.7994,128.23,128.19,7.8012]
[1741554618211,7.8545157,128.22,128.2,0.05430877]
[1741554619212,7.8003,128.21,128.2,0.05430877]
[1741554625913,7.8009,128.2,128.15,3.9758]
[1741554626115,19.71746308,128.18,128.09,19.71746308]
[1741554626319,30.28,128.17,128.09,23.95336308]
[1741554626518,30.28,128.17,128.09,4.2359]
[1741554626519,7.8058,128.12,128.09,4.2359]
[1741554626818,19.71746308,128.14,128.08,86.26619132]
[1741554627014,7.8069,128.11,128.08,86.26619132]
[1741554627215,19.7760389,128.12,128.08,79.20263314]
[1741554627411,19.71746308,128.1,128.08,67.13603314]
[1741554627611,38.0876,128.09,128.08,39.41783314]
[1741554628020,41.9876,128.09,128.08,39.41783314]
[1741554628414,53.89746308,128.09,128.08,39.41783314]
[1741554628620,53.89746308,128.09,128.07,0.05811977]
[1741554628816,49.99746308,128.09,128.07,0.05811977]
[1741554629016,57.86344061,128.09,128.07,0.05811977]
[1741554629216,192.0,128.08,128.05,18.67748156]
[1741554629421,39.43492616,128.06,128.03,212.10752252]
[1741554629621,19.71746308,128.04,128.02,222.20835846]
[1741554629819,30.28,128.03,128.02,222.20835846]
[1741554630225,34.18,128.03,128.02,222.20835846]
[1741554631416,34.18,128.03,128.01,0.04941105]
[1741554631613,19.71746308,128.02,128.01,0.04941105]
[1741554632020,31.42936308,128.02,128.01,0.04941105]
[1741554632810,31.42936308,128.02,127.92,19.71746308]
[1741554632811,7.8139,127.99,127.92,19.71746308]
[1741554633011,38.1139,127.99,127.92,19.71746308]
[1741554633224,30.3,127.99,127.91,3.9722]
[1741554633522,7.815,127.97,127.91,3.9722]
[1741554633724,19.71746308,127.98,127.91,3.9722]
[1741554634026,0.05427773,127.95,127.93,0.05423735]
[1741554634218,30.35427773,127.95,127.93,0.05423735]
[1741554635119,0.05427773,127.95,127.93,0.05423735]
[1741554635523,0.05427773,127.95,127.92,19.71746308]
[1741554635726,0.05427773,127.95,127.94,7.8167]
[1741554635925,0.05427773,127.95,127.92,19.71746308]
[1741554636626,0.05427773,127.95,127.93,7.8172]
[1741554637018,0.05427773,127.95,127.92,19.71746308]
[1741554637820,0.05427773,127.95,127.93,7.8169]
[1741554638121,0.05427773,127.95,127.93,7.87109236]
[1741554638722,0.05427773,127.95,127.94,7.8167]
[1741554638924,30.3,127.98,127.94,7.8167]
[1741554639134,30.3,127.98,127.94,19.71746308]
[1741554639317,38.1148,127.98,127.92,19.71746308]
[1741554639520,30.3,127.98,127.92,19.71746308]
[1741554639928,38.1143,127.98,127.93,7.8171]
[1741554640222,0.05963606,127.96,127.94,0.05685869]
[1741554641430,19.71746308,127.95,127.81,257.52]
[1741554641618,7.8206,127.88,127.83,19.71746308]
[1741554641818,50.03746308,127.87,127.82,8.2121]
[1741554642023,19.71746308,127.85,127.76,53.93436308]
[1741554642227,19.71746308,127.83,127.76,12.109]
[1741554642423,30.32,127.82,127.76,12.109]
[1741554642724,0.0537805,127.81,127.78,0.05398302]
[1741554643929,0.0537805,127.81,127.78,19.7714461]
[1741554644126,19.71746308,127.87,127.78,19.7714461]
[1741554644325,31.73055551,127.87,127.77,30.32]
[1741554644718,39.55165551,127.87,127.76,43.83955551]
[1741554644923,31.73055551,127.85,127.76,12.109]
[1741554645122,30.32,127.84,127.76,12.109]
[1741554645329,0.0555061,127.82,127.79,0.05812896]
[1741554649929,31.73055551,127.87,127.79,0.05812896]
[1741554650130,69.89215551,127.87,127.79,7.8254]
[1741554650325,69.89215551,127.87,127.78,30.34]
[1741554650634,69.89195551,127.87,127.8,7.8251]
[1741554650831,62.07055551,127.87,127.8,7.8251]
[1741554651132,0.05121602,127.85,127.82,0.05030379]
[1741554652228,0.05121602,127.85,127.8,7.8252]
[1741554653028,0.05121602,127.85,127.81,7.8246]
[1741554653629,0.05121602,127.85,127.8,0.05058947]
[1741554654530,0.05121602,127.85,127.81,7.8243]
[1741554655233,0.05121602,127.85,127.8,0.05058947]
[1741554655434,0.05121602,127.85,127.82,7.8239]
[1741554657427,0.05121602,127.85,127.8,0.05058947]
[1741554657830,192.0,127.84,127.8,0.05058947]
[1741554658037,30.34,127.83,127.8,0.05058947]
[1741554658233,7.8244,127.82,127.8,0.05058947]
[1741554658432,30.34,127.83,127.8,0.05058947]
[1741554658633,0.05125311,127.82,127.8,0.05058947]
[1741554660043,7.87575311,127.82,127.8,0.05058947]
[1741554661339,7.8247,127.81,127.8,0.05058947]
[1741554661733,7.87555311,127.82,127.8,0.05058947]
[1741554662442,0.05125311,127.82,127.8,0.05058947]
[1741554662640,7.8247,127.81,127.8,0.05058947]
[1741554663038,0.05125311,127.82,127.8,0.05058947]
[1741554663742,7.8247,127.81,127.8,0.05058947]
[1741554663942,0.05125311,127.82,127.8,0.05058947]
[1741554664343,7.87575311,127.82,127.8,0.05058947]
[1741554664941,7.8247,127.81,127.8,8.947e-05]
[1741554665943,3.92,127.81,127.72,7.8298]
[1741554666133,7.8278,127.76,127.72,7.8298]
[1741554666338,30.34,127.82,127.72,19.84688007]
[1741554666636,19.84688007,127.79,127.71,30.36]
[1741554666836,19.84688007,127.77,127.7,8.179]
[1741554667039,19.84688007,127.77,127.7,12.2405]
[1741554667237,7.8278,127.76,127.75,0.05030418]
[1741554667438,7.8278,127.76,127.71,7.8308]
[1741554667642,7.8278,127.76,127.74,0.05669694]
[1741554668046,0.05649556,127.77,127.74,0.05669694]
[1741554668744,7.8282,127.76,127.74,0.05669694]
[1741554668945,0.05649556,127.77,127.74,0.05669694]
[1741554669242,7.8278,127.76,127.74,0.05669694]
[1741554669445,0.05649556,127.77,127.74,0.05669694]
[1741554670042,0.05649556,127.77,127.75,7.8279]
[1741554670246,30.36,127.81,127.74,0.05669694]
[1741554670442,30.36,127.81,127.77,7.8268]
[1741554670746,7.8237,127.83,127.73,62.13220145]
[1741554671147,30.36,127.85,127.76,31.77220145]
[1741554671341,7.8232,127.84,127.79,0.05272563]
[1741554671541,0.05787276,127.82,127.81,7.8247]
[1741554671737,30.36,127.85,127.81,7.8247]
[1741554671942,30.36,127.85,127.77,38.5303]
[1741554672150,7.8229,127.84,127.77,38.5303]
[1741554672345,30.36,127.85,127.77,38.5303]
[1741554672741,38.1828,127.85,127.8,7.8249]
[1741554672952,0.05927857,127.82,127.8,7.87660913]
[1741554673448,38.1828,127.85,127.8,7.87660913]
[1741554674647,0.05336517,127.84,127.8,0.05170913]
[1741554674842,0.05336517,127.84,127.78,31.77220145]
[1741554675039,0.05336517,127.84,127.81,0.05254762]
[1741554675249,7.8213,127.87,127.81,30.41254762]
[1741554675450,192.0,127.89,127.81,30.41254762]
[1741554675749,72.91547536,127.9,127.81,30.36]
[1741554676248,7.8211,127.87,127.82,7.8236]
[1741554676444,0.05530859,127.87,127.84,0.05652136]
[1741554676846,7.87630859,127.87,127.84,0.05652136]
[1741554678751,0.05530859,127.87,127.84,0.05652136]
[1741554678952,0.05530859,127.87,127.84,4.35322136]
[1741554679349,7.87670859,127.87,127.84,4.35322136]
[1741554680442,0.05530859,127.87,127.84,4.35322136]
[1741554680955,7.822,127.86,127.84,4.35322136]
[1741554681150,0.05530859,127.87,127.84,4.35322136]
[1741554682353,0.05530859,127.87,127.84,12.17572136]
[1741554682650,0.05530859,127.87,127.84,4.35322136]
[1741554682856,7.8201,127.89,127.85,7.8219]
[1741554683057,43.13309565,127.9,127.85,30.34]
[1741554683451,43.13309565,127.9,127.87,7.8206]
[1741554683650,7.819,127.91,127.87,7.8206]
[1741554683951,0.05142226,127.9,127.88,0.05282114]
[1741554684350,7.87062226,127.9,127.88,0.05282114]
[1741554684851,0.05142226,127.9,127.88,0.05282114]
[1741554685458,43.13309565,127.92,127.88,0.05282114]
[1741554685752,43.13309565,127.92,127.89,7.8198]
[1741554685957,43.13309565,127.92,127.89,11.7786]
[1741554686253,43.13309565,127.92,127.9,7.8192]
[1741554686456,7.817,127.94,127.9,7.8192]
[1741554686648,0.05846432,127.92,127.9,7.8192]
[1741554686847,74.9052971,127.98,127.91,0.05387647]
[1741554687052,7.8149,127.97,127.93,7.8169]
[1741554687252,43.13309565,127.98,127.93,7.8169]
[1741554687457,50.94779565,127.98,127.93,7.8169]
[1741554688160,7.86752355,127.97,127.94,0.05775105]
[1741554688555,43.13309565,127.98,127.94,0.05775105]
[1741554689661,7.815,127.97,127.94,0.05775105]
[1741554689958,7.84308037,127.97,127.94,0.05775105]
[1741554690162,0.02808037,127.97,127.94,0.05775105]
[1741554690860,30.5051,128.04,127.97,7.8148]
[1741554691061,31.77220145,128.05,127.94,31.77220145]
[1741554691261,62.09220145,128.05,127.95,38.1359]
[1741554691661,31.77220145,128.02,127.95,30.32]
[1741554692064,31.77220145,128.02,127.97,0.05306177]
[1741554692866,30.32,128.01,127.97,0.05306177]
[1741554693566,7.8143,127.98,127.97,0.05306177]
[1741554693862,30.32,128.01,127.97,0.05306177]
[1741554697879,39.58650145,127.98,127.97,6.177e-05]
[1741554698376,19.79897651,127.98,127.9,257.98]
[1741554698673,19.79897651,127.95,127.9,257.98]
[1741554698867,7.8183,127.92,127.89,4.2412]
[1741554699571,7.8183,127.92,127.89,12.12025938]
[1741554699572,0.05306177,127.92,127.89,12.12025938]
[1741554699875,0.05306177,127.92,127.89,4.30085938]
[1741554700275,0.05306177,127.92,127.89,12.12035938]
[1741554701377,7.87106177,127.92,127.89,4.30085938]
[1741554702380,0.05306177,127.92,127.89,4.30085938]
[1741554702985,7.8192,127.9,127.89,0.05965938]
[1741554703679,7.8192,127.9,127.89,5.938e-05]
[1741554704972,3.9,127.9,127.81,4.233]
[1741554705176,31.68429966,127.87,127.81,4.233]
[1741554705378,7.8224,127.85,127.81,4.233]
[1741554705875,30.3,127.87,127.81,4.233]
[1741554706073,0.05316734,127.84,127.82,0.06021552]
[1741554706875,0.05316734,127.84,127.82,7.88391552]
[1741554707075,0.05316734,127.84,127.82,0.06021552]
[1741554707279,30.3,127.87,127.84,7.8228]
[1741554707475,30.3,127.87,127.82,0.06021552]
[1741554707676,30.32,127.91,127.82,0.06021552]
[1741554707879,38.1389,127.91,127.85,7.8217]
[1741554708074,30.32,127.91,127.85,7.8217]
[1741554708279,30.32,127.91,127.81,8.263]
[1741554708479,0.05034785,127.89,127.87,0.05827287]
[1741554710079,7.8204,127.88,127.87,0.05827287]
[1741554710280,31.73464751,127.89,127.81,8.263]
[1741554710481,31.68429966,127.89,127.81,8.263]
[1741554710784,7.8227,127.85,127.81,16.0876]
[1741554711081,30.32,127.87,127.81,8.263]
[1741554711283,7.8224,127.85,127.81,16.0877]
[1741554711478,0.05925723,127.85,127.83,0.06004987]
[1741554711880,7.8229,127.84,127.83,0.06004987]
[1741554712083,0.05925723,127.85,127.83,0.06004987]
[1741554712878,7.88185723,127.85,127.83,0.06004987]
[1741554713781,0.05925723,127.85,127.83,0.06004987]
[1741554713982,7.8229,127.84,127.83,0.06004987]
[1741554717682,0.05925723,127.85,127.76,8.2337]
[1741554717986,7.8263,127.79,127.76,8.2337]
[1741554718186,30.32,127.83,127.76,8.2337]
[1741554718485,30.32,127.83,127.72,292.2309]
[1741554718782,30.32,127.83,127.73,7.8291]
[1741554718984,0.05568586,127.79,127.76,0.05877519]
[1741554719190,30.37568586,127.79,127.76,0.05877519]
[1741554720087,7.8266,127.78,127.76,0.05877519]
[1741554720782,30.37568586,127.79,127.76,0.05877519]
[1741554722087,7.8266,127.78,127.76,0.05877519]
[1741554722477,30.37568586,127.79,127.76,0.05877519]
[1741554722883,38.20158586,127.79,127.76,0.05877519]
[1741554723182,30.37568586,127.79,127.76,0.05877519]
[1741554724496,7.8267,127.78,127.76,0.05877519]
[1741554724791,30.37568586,127.79,127.76,0.05877519]
[1741554725789,31.68429966,127.78,127.69,8.1691]
[1741554726186,7.8301,127.73,127.68,7.8324]
[1741554726488,7.8301,127.73,127.59,258.14]
[1741554726489,31.68429966,127.72,127.64,7.932]
[1741554726691,35.62199966,127.72,127.64,7.932]
[1741554726892,0.05639041,127.69,127.67,0.05910897]
[1741554727086,30.39639041,127.69,127.67,0.05910897]
[1741554727784,7.8327,127.68,127.67,0.05910897]
[1741554728686,35.60429966,127.68,127.58,7.8384]
[1741554728883,31.68429966,127.65,127.55,12.12]
[1741554729086,30.64,127.64,127.55,12.12]
[1741554729293,7.8357,127.63,127.58,7.8387]
[1741554729495,30.64,127.64,127.55,12.12]
[1741554729894,0.04972171,127.61,127.58,0.0592022]
[1741554731093,31.12,127.68,127.58,31.74350186]
[1741554731290,31.12,127.68,127.58,0.0592022]
[1741554731495,31.68429966,127.64,127.57,7.8393]
[1741554731693,62.88429966,127.64,127.55,31.3]
[1741554732090,62.88429966,127.64,127.56,7.8395]
[1741554732297,0.05264222,127.61,127.58,0.05844148]
[1741554733301,31.78,127.6,127.58,0.05844148]
[1741554733599,7.89004222,127.61,127.58,0.05844148]
[1741554733800,0.05264222,127.61,127.58,0.05844148]
[1741554734212,7.8382,127.59,127.58,0.05844148]
[1741554734705,7.8412,127.55,127.5,4.0832]
[1741554734900,31.68429966,127.58,127.5,4.0832]
[1741554735298,7.842,127.53,127.38,450.4]
[1741554735498,33.18,127.53,127.42,31.68429966]
[1741554735897,0.05333815,127.49,127.46,0.05040272]
[1741554736101,262.82229966,127.57,127.46,8.09470272]
[1741554736298,262.82229966,127.57,127.46,12.04250272]
[1741554736495,0.1513,127.61,127.48,31.68429966]
[1741554736702,33.5,127.6,127.49,33.5]
[1741554737001,31.68429966,127.59,127.47,258.5]
[1741554737202,31.74429496,127.56,127.53,0.05271705]
[1741554737397,0.0599953,127.56,127.53,0.05271705]
[1741554738000,0.0599953,127.56,127.53,7.89411705]
[1741554738199,0.0599953,127.56,127.53,0.05271705]
[1741554738605,0.0599953,127.56,127.53,7.89451705]
[1741554739211,0.0599953,127.56,127.53,0.05271705]
[1741554742413,0.0599953,127.56,127.53,7.89411705]
[1741554742712,0.0599953,127.56,127.53,0.05271705]
[1741554742912,0.0599953,127.56,127.54,4.1337]
[1741554743308,0.0599953,127.56,127.55,7.8406]
[1741554743511,39.52079966,127.62,127.54,12.5858]
[1741554743708,31.68429966,127.65,127.54,46.2058]
[1741554743911,33.6,127.64,127.54,46.2058]
[1741554744111,31.68429966,127.62,127.54,46.2058]
[1741554744512,7.8361,127.63,127.58,7.8386]
[1741554744718,0.05920749,127.59,127.57,0.05211694]
[1741554745011,0.05124436,127.59,127.57,0.05211694]
[1741554745612,33.6,127.64,127.57,0.05211694]
[1741554746005,7.8358,127.63,127.57,0.05211694]
[1741554746213,33.6,127.64,127.57,0.05211694]
[1741554746909,0.05979378,127.62,127.57,0.05211694]
[1741554748405,0.05979378,127.62,127.59,7.8378]
[1741554748607,0.05979378,127.62,127.57,0.05211694]
[1741554750118,0.05979378,127.62,127.58,7.8384]
[1741554750319,0.05979378,127.62,127.57,0.05211694]
[1741554750615,0.05979378,127.62,127.6,7.8375]
[1741554751015,0.05979378,127.62,127.6,0.05237441]
[1741554751215,0.05979378,127.62,127.61,7.837]
[1741554751718,0.05979378,127.62,127.6,0.05237441]
[1741554752224,3.8892,127.69,127.6,0.05237441]
[1741554752420,37.2892,127.69,127.58,65.10429966]
[1741554752813,37.2892,127.69,127.58,33.42]
[1741554753012,7.8362,127.63,127.58,41.2584]
[1741554753414,0.05010582,127.62,127.59,0.05252052]
[1741554754617,7.88690582,127.62,127.59,0.05252052]
[1741554755416,0.05010582,127.62,127.59,0.05252052]
[1741554756117,7.88650582,127.62,127.59,0.05252052]
[1741554757518,0.05010582,127.62,127.59,0.05252052]
[1741554757913,0.05010582,127.62,127.61,7.837]
[1741554758118,37.1692,127.69,127.6,12.2695]
[1741554758319,180.42377316,127.72,127.6,12.2695]
[1741554758520,7.8328,127.68,127.6,12.2695]
[1741554758720,0.208,127.71,127.61,31.68429966]
[1741554758911,213.72377316,127.72,127.62,33.36]
[1741554759112,0.03000307,127.68,127.66,0.05328659]
[1741554760323,0.03000307,127.68,127.67,7.8333]
[1741554760519,50.96369565,127.72,127.66,0.05328659]
[1741554760726,7.8306,127.72,127.66,33.35328659]
[1741554761022,7.8306,127.72,127.67,7.8329]
[1741554761521,43.13309565,127.75,127.67,258.5]
[1741554761824,43.13309565,127.75,127.68,3.9212]
[1741554762024,43.13309565,127.75,127.71,7.8306]
[1741554763124,43.13309565,127.75,127.71,11.9403]
[1741554763329,43.13309565,127.75,127.71,4.1097]
[1741554763522,3.9677,127.79,127.72,7.8302]
[1741554763721,74.81739531,127.8,127.71,4.1097]
[1741554763922,108.07739531,127.8,127.74,0.0574897]
[1741554765834,64.94429966,127.8,127.74,0.0574897]
[1741554766424,7.8284,127.75,127.74,0.0574897]
[1741554767526,64.94429966,127.8,127.74,0.0574897]
[1741554768231,7.8275,127.77,127.74,0.0574897]
[1741554769023,64.94429966,127.8,127.74,0.0574897]
[1741554769530,64.94429966,127.8,127.74,7.8860897]
[1741554769833,7.8269,127.78,127.74,7.8864897]
[1741554770636,7.8261,127.79,127.74,7.8864897]
[1741554771330,7.8269,127.78,127.74,0.0574897]
[1741554771532,37.0277,127.82,127.71,37.2297]
[1741554771732,3.9677,127.82,127.75,0.05156529]
[1741554772836,192.0,127.83,127.75,33.01156529]
[1741554773039,192.0,127.83,127.75,32.96]
[1741554773233,192.0,127.83,127.78,0.05691189]
[1741554773434,7.8256,127.8,127.78,0.05691189]
[1741554773734,33.2369,127.84,127.78,0.05691189]
[1741554773936,32.96,127.84,127.78,0.05691189]
[1741554774129,7.8244,127.82,127.78,0.05691189]
[1741554774734,32.96,127.84,127.78,0.05691189]
[1741554775544,7.8246,127.82,127.78,0.05691189]
[1741554775741,7.8246,127.82,127.78,12.0907]
[1741554776247,7.8246,127.82,127.79,0.05559404]
[1741554777645,64.50429966,127.86,127.79,0.05559404]
[1741554777846,7.8238,127.83,127.79,0.05559404]
[1741554778948,31.68429966,127.86,127.79,0.05559404]
[1741554779141,7.8245,127.82,127.79,0.05559404]
[1741554779648,31.68429966,127.86,127.79,0.05559404]
[1741554779941,7.8237,127.83,127.79,0.05559404]
[1741554780346,31.68429966,127.86,127.79,0.05559404]
[1741554780547,230.8619,127.87,127.79,0.05559404]
[1741554780750,230.8619,127.87,127.79,7.8256]
[1741554780947,230.8619,127.87,127.82,0.05848038]
[1741554781443,293.53673193,127.95,127.82,0.05848038]
[1741554781638,7.8207,127.88,127.8,64.32429966]
[1741554781838,7.8207,127.88,127.87,0.05080833]
[1741554782045,7.8207,127.88,127.81,7.8243]
[1741554782243,7.8207,127.88,127.86,0.04953689]